[Event "Serbian League 2024"]
[Site "Bajina Basta"]
[Date "2024.10.02"]
[Round "6.5"]
[White "Juhasz, Bence R"]
[Black "Radovanovic, Mihajlo"]
[Result "1/2-1/2"]
[ECO "B00"]
[WhiteElo "2266"]
[BlackElo "2426"]
[Annotator "RC"]
[PlyCount "111"]
[EventDate "2024.09.26"]
[EventType "team-tourn"]
[EventCountry "SRB"]
[SourceTitle "playchess.com"]
[Source "ChessBase"]
[SourceQuality "1"]
[TimeControl "40/5400+30:1800+30"]

1. e4 {[%emt 0:02:16]} Nc6 {[%emt 0:00:16]} 2. d4 {[%emt 0:00:58]} d5 {[%emt 0:00:05]} 3. e5 {[%emt 0:00:12]} Bf5 {[%emt 0:00:06]} 4. c3 {[%emt 0:00:08]} e6 {[%emt 0:00:05]} 5. f4 {[%emt 1:29:26]} h5 {[%emt 0:04:42]} 6. Nf3 {[%emt 0:00:00]} Nh6 {[%emt 0:00:38]} 7. Be3 {[%emt 0:00:00]} Qd7 {[%emt 0:09:36]} 8. Nbd2 {[%emt 0:00:00]} f6 {[%emt 0:06:59]} 9. b4 {[%emt 0:00:00]} a5 {[%emt 0:07:29]} 10. a3 {[%emt 0:00:00]} Na7 {[%emt 0:10:11]} 11. Qc1 {[%emt 0:00:00]} Qa4 {[%emt 0:17:27]} 12. Be2 {[%emt 0:00:00]} Be7 {[%emt 0:04:47]} 13. h3 {[%emt 0:00:00]} Nc8 {[%emt 0:02:48]} 14. O-O {[%emt 0:00:00]} Nb6 {[%emt 0:00:56]} 15. exf6 {[%emt 0:00:00]} gxf6 {[%emt 0:03:51]} 16. Nh4 {[%emt 0:00:00]} Kd7 {[%emt 0:04:09]} 17. Nxf5 {[%emt 0:00:00]} Nxf5 {[%emt 0:00:08]} 18. Bf2 {[%emt 0:00:00]} Rag8 {[%emt 0:07:24]} 19. b5 {[%emt 0:00:00]} Nd6 {[%emt 0:02:04]} 20. Qb1 {[%emt 0:00:00]} Nbc4 {[%emt 0:00:13]} 21. Nxc4 {[%emt 0:00:00]} dxc4 {[%emt 0:00:13]} 22. f5 {[%emt 0:00:00]} Rg5 {[%emt 0:04:04]} 23. fxe6+ {[%emt 0:00:00]} Kc8 {[%emt 0:01:12]} 24. Bh4 {[%emt 0:00:00]} Rxb5 {[%emt 0:00:31]} 25. Qg6 {[%emt 0:00:00]} Rb2 {[%emt 0:00:19]} 26. Bxf6 {[%emt 0:00:00]} Bxf6 {[%emt 0:00:50]} 27. Qxf6 {[%emt 0:00:00]} Rg8 {[%emt 0:01:11]} 28. Rae1 {[%emt 0:00:00]} Kb8 {[%emt 0:01:57]} 29. e7 {[%emt 0:00:00]} Ka7 {[%emt 0:00:16]} 30. Qe6 {[%emt 0:00:00]} Rg3 {[%emt 0:02:06]} 31. Rf3 {[%emt 0:00:00]} h4 {[%emt 0:00:04]} 32. Qe5 {[%emt 0:00:12]} Qxa3 {[%emt 0:01:59]} 33. Qc5+ {[%emt 0:02:57]} Qxc5 {[%emt 0:00:01]} 34. dxc5 {[%emt 0:00:02]} Ne8 {[%emt 0:00:13]} 35. Rf8 {[%emt 0:00:30]} Re3 {[%emt 0:00:05]} 36. Kf1 {[%emt 0:02:58]} Rxe7 {[%emt 0:00:45]} 37. Bxc4 {[%emt 0:00:13]} Rxe1+ {[%emt 0:00:10]} 38. Kxe1 {[%emt 0:00:02]} Ng7 {[%emt 0:00:28]} 39. Rf2 {[%emt 0:01:49]} Rb1+ {[%emt 0:00:44]} 40. Kd2 {[%emt 0:00:12]} Nh5 {[%emt 0:04:59]} 41. Kc2 {[%emt 0:34:20]} Re1 {[%emt 0:32:18]} 42. c6 {[%emt 0:01:35]} Re5 {[%emt 0:01:49]} 43. cxb7 {[%emt 0:01:44]} Kxb7 {[%emt 0:00:24]} 44. Kd3 {[%emt 0:00:20]} Rg5 {[%emt 0:00:00]} 45. Kd4 {[%emt 0:00:00]} Kb6 {[%emt 0:00:00]} 46. Bd5 {[%emt 0:00:00]} c6 {[%emt 0:00:00]} 47. Be4 {[%emt 0:00:00]} Ng7 {[%emt 0:00:00]} 48. Rf6 {[%emt 0:00:00]} Rc5 {[%emt 0:00:00]} 49. Bc2 {[%emt 0:00:00]} Rd5+ {[%emt 0:00:00]} 50. Kc4 {[%emt 0:00:00]} Re5 {[%emt 0:00:00]} 51. Rh6 {[%emt 0:00:00]} Rh5 {[%emt 0:00:00]} 52. Rg6 {[%emt 0:00:00]} Nf5 {[%emt 0:01:17]} 53. Be4 {[%emt 0:00:00]} Ne7 {[%emt 0:00:38]} 54. Re6 {[%emt 0:00:00]} Rc5+ {[%emt 0:00:12]} 55. Kb3 {[%emt 0:00:56]} Nd5 {[%emt 0:01:16]} 56. Bxd5 {[%emt 0:01:39]} 1/2-1/2

[Event "Serbian League 2024"]
[Site "Bajina Basta"]
[Date "2024.10.02"]
[Round "6.6"]
[White "Lukovic, Vladimir"]
[Black "Kecskemeti, Arpad"]
[Result "1-0"]
[ECO "B28"]
[WhiteElo "2431"]
[BlackElo "2236"]
[Annotator "TA"]
[PlyCount "61"]
[EventDate "2024.09.26"]
[EventType "team-tourn"]
[EventCountry "SRB"]
[SourceTitle "playchess.com"]
[Source "ChessBase"]
[SourceQuality "1"]
[TimeControl "40/5400+30:1800+30"]

{[%evp 13,61,26,24,18,22,9,34,17,10,6,31,21,22,18,11,12,30,32,133,164,167,168,199,195,140,82,52,63,87,-83,46,0,0,0,134,104,628,639,583,368,380,403,394,398,401,397,380,388,444,433]} 1. e4 {[%emt 0:00:13]} c5 {[%emt 0:00:23]} 2. Nf3 {[%emt 0:00:21]} a6 {[%emt 0:00:36]} 3. c3 {[%emt 0:02:57]} d5 {[%emt 0:00:49]} 4. exd5 {[%emt 0:00:29]} Qxd5 {[%emt 0:00:21]} 5. d4 {[%emt 0:00:33]} Nf6 {[%emt 0:00:38]} 6. Be2 {[%emt 0:01:07]} e6 {[%emt 0:02:59]} 7. O-O {[%emt 0:03:10]} Nc6 {[%emt 0:03:27]} 8. h3 {[%emt 0:02:14]} Be7 {[%emt 0:07:49]} 9. c4 {[%emt 0:03:39]} Qd8 {[%emt 0:01:58][%cal Rc5d4]} 10. Be3 {[%emt 0:00:37] White is slightly better.} cxd4 {[%emt 0:01:41]} 11. Nxd4 {[%emt 0:00:09]} Nxd4 {[%emt 0:01:17]} 12. Bxd4 {[%emt 0:01:29]} O-O {[%emt 0:01:55]} 13. Qd2 {[%emt 0:04:47]} Qc7 {[%emt 0:14:34]} 14. Qe3 {[%emt 0:04:07]} Nd7 {[%emt 0:02:01]} 15. Nc3 {[%emt 0:02:02]} b6 {[%emt 0:20:12]} ({Black should play} 15... Re8 $14) 16. Nd5 $16 {[%emt 0:08:47]} exd5 {[%emt 0:18:01]} 17. Qxe7 {[%emt 0:00:34]} Bb7 {[%emt 0:01:17][%cal Bc8b7,Bb7d5,Bd5c6][%mdl 32] [#]} 18. Bg4 $1 {[%emt 0:04:18] This pair of bishops is nice.} Rad8 {[%emt 0:01:37]} 19. cxd5 $40 {[%emt 0:02:14][%mdl 128] White goes for the king. White has more active pieces.} (19. Rfe1 $142 {Rad1 is the strong threat.} dxc4 20. Re6) 19... Rfe8 {[%emt 0:07:33]} 20. Qa3 {[%emt 0:22:30]} Bxd5 {[%emt 0:05:05]} 21. Qxa6 $2 {[%emt 0:02:11] [#]} (21. Rfe1 $16 {and life is bright.}) 21... Nc5 {[%emt 0:00:58]} (21... Bc4 $1 $17 {[%cal Rc4a6]} 22. Qa4 (22. Rfc1 $2 Re1+ 23. Rxe1 Bxa6 $19) 22... Bxf1 23. Rxf1 Ne5) 22. Qb5 {[%emt 0:08:30]} (22. Bxc5 $1 $14 bxc5 23. Rfd1) 22... Bc6 $11 {[%emt 0:02:52]} 23. Qb4 {[%emt 0:00:07][%cal Of1d1]} Re4 {[%emt 0:02:59]} (23... h5 $1 $11 {remains equal.} 24. Bxh5 Re4) 24. Rfd1 {[%emt 0:00:07]} Qf4 $2 {[%emt 0:00:50][%mdl 8192] Prevents Rac1. This costs Black the game.} (24... g6 $16 25. Bf3 Re6) 25. Qxb6 {[%emt 0:04:31]} Rdxd4 {[%emt 0:00:20]} 26. Rxd4 {[%emt 0:00:20]} Rxd4 {[%emt 0:00:04]} 27. Qxc6 {[%emt 0:00:18][%cal Rc6e8]} (27. Qxc5 Rc4 28. Rd1 h6 $16) 27... h5 {[%emt 0:00:58]} 28. Qc8+ {[%emt 0:00:30]} ({Don't play} 28. Bxh5 Nd7 29. Qf3 Qxf3 30. Bxf3 Ne5 $18) 28... Kh7 {[%emt 0:00:10]} 29. Bf5+ {[%emt 0:00:36]} ({Weaker is} 29. Bxh5 Nd3 $16) 29... g6 {[%emt 0:00:52]} 30. Bxg6+ {[%emt 0:00:13]} fxg6 {[%emt 0:00:11]} 31. Qxc5 {[%emt 0:00:05] Weighted Error Value: White=0.31/Black=0.59.  Loses game:     	---       	Black=1      Mistake:       	White=3     	Black=3      OK:         	White=8     	Black=6      Best:        	White=2     	Black=3      Strong:       	White=1     	---} 1-0

[Event "Serbian League 2024"]
[Site "Bajina Basta"]
[Date "2024.10.02"]
[Round "6.7"]
[White "Ivic, Velimir"]
[Black "Tarhan, Adar"]
[Result "1-0"]
[ECO "D35"]
[WhiteElo "2599"]
[BlackElo "2474"]
[Annotator "TA"]
[PlyCount "105"]
[EventDate "2024.09.26"]
[EventType "team-tourn"]
[EventCountry "SRB"]
[SourceTitle "playchess.com"]
[Source "ChessBase"]
[SourceQuality "1"]
[TimeControl "40/5400+30:1800+30"]

{[%evp 13,105,32,31,10,22,24,29,21,20,12,39,19,49,31,31,37,36,39,36,17,27,20,8,0,6,4,0,0,33,25,24,14,32,23,27,13,51,25,28,21,26,6,27,27,28,19,33,45,23,28,57,0,0,0,0,0,0,0,7,-96,178,184,176,139,378,387,712,707,1095,1136,1076,1052,943,907,29958,29959,29959,29961,29962,29964,29965,29970,29972,29973,29966,29970,29979,29980,29980,29981,29981,29982,29982,29983]} 1. d4 {[%emt 0:01:33]} Nf6 {[%emt 0:00:07]} 2. c4 {[%emt 0:00:37]} e6 {[%emt 0:00:31][%cal Be7e6,Be6d5,Bd5e4][%mdl 32]} 3. Nc3 {[%emt 0:00:19]} d5 {[%emt 0:01:16]} 4. cxd5 {[%emt 0:00:17]} exd5 {[%emt 0:00:05]} 5. Bg5 {[%emt 0:00:16]} c6 {[%emt 0:00:15]} 6. e3 {[%emt 0:00:21]} Qb6 {[%emt 0:03:15]} 7. Qc2 {[%emt 0:22:04]} Ne4 {[%emt 0:06:35]} 8. Nxe4 {[%emt 0:06:27]} dxe4 {[%emt 0:00:35]} 9. O-O-O {[%emt 0:01:27]} (9. Qxe4+ {is more complex.} Be6 10. Nf3 Qxb2 11. Rb1) 9... Be6 $1 {[%emt 0:05:10]} 10. Bc4 {[%emt 0:13:49] White has an edge.} Bxc4 {[%emt 0:00:25]} 11. Qxc4 {[%emt 0:00:07] Threatening Qc2.} Na6 {[%emt 0:05:39][%cal Bb8a6,Ba6b4,Bb4a2][%mdl 32]} 12. f3 {[%emt 0:14:47]} Nb4 {[%emt 0:08:03]} 13. fxe4 {[%emt 0:03:19]} Qa5 {[%emt 0:00:08][%csl LRa2,LRg5]} 14. Nf3 {[%emt 0:01:30] Hoping for a3.} Qxa2 {[%emt 0:01:24]} 15. Qxa2 {[%emt 0:00:07]} Nxa2+ {[%emt 0:00:05]} 16. Kb1 {[%emt 0:01:57]} Nb4 {[%emt 0:00:09]} 17. e5 {[%emt 0:11:11]} Be7 {[%emt 0:03:15]} 18. e4 {[%emt 0:01:07]} Bxg5 {[%emt 0:01:22]} 19. Nxg5 {[%emt 0:00:01]} h6 {[%emt 0:04:31]} 20. Nf3 {[%emt 0:00:52]} O-O-O {[%emt 0:00:11]} 21. Nh4 {[%emt 0:07:26]} g6 {[%emt 0:00:30]} 22. Rhf1 {[%emt 0:00:56]} Rd7 {[%emt 0:00:19]} 23. Nf3 {[%emt 0:02:45]} Rhd8 {[%emt 0:00:53]} 24. Rd2 {[%emt 0:03:53]} Na6 {[%emt 0:00:43][%cal Oa6c5]} 25. Rfd1 {[%emt 0:00:28]} Nc7 {[%emt 0:00:08]} 26. Kc2 {[%emt 0:00:44]} a5 {[%emt 0:00:24]} 27. Kc3 {[%emt 0:01:49]} b6 {[%emt 0:03:25]} 28. Kd3 {[%emt 0:01:04]} Kb7 {[%emt 0:00:53]} 29. Ke3 {[%emt 0:00:11]} a4 {[%emt 0:03:57]} 30. h4 {[%emt 0:00:29][%cal Bh2h4,Bh4h5][%mdl 32]} b5 {[%emt 0:01:02] [#]} 31. h5 $1 {[%emt 0:00:12]} g5 {[%emt 0:00:21]} (31... gxh5 32. Rh1) 32. Nh2 {[%emt 0:00:47]} ({White should play} 32. Ne1 $14) 32... Na8 $1 $11 {[%emt 0:00:30] aiming for ...Nb6.} 33. Ng4 {[%emt 0:01:45][%cal Od2c2]} (33. Rc1 $5) 33... Nb6 {[%emt 0:00:06] ...Nc4+ is the strong threat.} 34. Rc1 {[%emt 0:00:45]} Nc4+ {[%emt 0:00:51]} 35. Rxc4 $1 {[%emt 0:00:02]} bxc4 {[%emt 0:00:05][%mdl 4096] Endgame. KRR-KRN} 36. Nf6 {[%emt 0:01:46] [#]} (36. Nxh6 $11 {was the only way to keep the balance.} Ka6 37. Nf5) 36... Kb6 $2 {[%emt 0:00:54][%mdl 8192]} 37. Nxd7+ $18 {[%emt 0:00:34]} Rxd7 {[%emt 0:00:06] [#] KR-KR} 38. d5 $1 {[%emt 0:00:55]} Kc5 $2 {[%emt 0:01:49] A mistake that costs the game.} (38... cxd5 $16 {is a better defense.} 39. exd5 Kc5) 39. d6 {[%emt 0:00:45]} Kb4 $2 {[%emt 0:00:02]} (39... Rd8 40. Rf2 Rf8) 40. Kd4 {[%emt 0:00:33]} c5+ {[%emt 0:08:03]} 41. Kd5 {[%emt 0:30:19]} c3 {[%emt 0:30:05]} 42. bxc3+ {[%emt 0:00:00]} Kxc3 {[%emt 0:00:00]} 43. Rf2 {[%emt 0:00:00] Strongly threatening Rf3+.} c4 {[%emt 0:00:00]} 44. e6 {[%emt 0:00:00] White mates.} fxe6+ {[%emt 0:00:00]} 45. Kxe6 {[%emt 0:00:00]} Rd8 {[%emt 0:00:00]} 46. Ke7 {[%emt 0:00:00]} Ra8 {[%emt 0:00:00]} 47. d7 {[%emt 0:00:00]} a3 {[%emt 0:00:00]} 48. d8=Q {[%emt 0:00:00]} (48. d8=B $2 {is the wrong capture.} Kb3 49. Bb6 a2 $19) 48... Rxd8 {[%emt 0:00:00]} 49. Kxd8 {[%emt 0:00:00]} Kd4 {[%emt 0:00:00]} 50. Ra2 {[%emt 0:00:00]} c3 {[%emt 0:00:00][%cal Bc4c3,Bc3c2][%mdl 32]} 51. Rxa3 {[%emt 0:00:00]} c2 {[%emt 0:00:00]} 52. Ra1 {[%emt 0:00:00]} Kxe4 {[%emt 0:00:00]} 53. Ke7 {[%emt 0:00:00] Weighted Error Value: White=0.09 (flawless) /Black=0.37.  Loses game:     	---       	Black=2      Mistake:       	White=2     	Black=1      Inaccurate:     	White=1     	Black=6      OK:         	White=14    	Black=11     Best:        	White=2     	Black=3      Strong:       	White=2     	Black=2} 1-0

[Event "Serbian League 2024"]
[Site "Bajina Basta"]
[Date "2024.10.02"]
[Round "6.8"]
[White "Celik, Hasan Huseyin"]
[Black "Djukic, Nikola"]
[Result "1/2-1/2"]
[ECO "B76"]
[WhiteElo "2425"]
[BlackElo "2515"]
[Annotator "TA"]
[PlyCount "53"]
[EventDate "2024.09.26"]
[EventType "team-tourn"]
[EventCountry "SRB"]
[SourceTitle "playchess.com"]
[Source "ChessBase"]
[SourceQuality "1"]
[TimeControl "40/5400+30:1800+30"]

{[%evp 26,53,35,34,34,32,24,25,30,25,20,35,28,25,18,20,24,16,14,8,27,14,22,29,18,10,22,7,16,1]} 1. e4 {[%emt 0:00:04]} c5 {[%emt 0:02:49]} 2. Nf3 {[%emt 0:00:10]} d6 {[%emt 0:00:22]} 3. d4 {[%emt 0:00:12]} cxd4 {[%emt 0:00:07]} 4. Nxd4 {[%emt 0:00:07]} Nf6 {[%emt 0:00:12]} 5. Nc3 {[%emt 0:00:07]} g6 {[%emt 0:04:17]} 6. Be3 {[%emt 0:01:04]} Bg7 {[%emt 0:00:06]} 7. f3 {[%emt 0:00:11]} O-O {[%emt 0:00:08]} 8. Qd2 {[%emt 0:00:06]} Nc6 {[%emt 0:00:06]} 9. O-O-O {[%emt 0:00:32]} d5 {[%emt 0:00:06]} 10. exd5 {[%emt 0:00:18]} Nxd5 {[%emt 0:00:07]} 11. Nxc6 {[%emt 0:00:06]} bxc6 {[%emt 0:00:05]} 12. Bd4 {[%emt 0:00:04]} Bxd4 {[%emt 0:00:38]} 13. Qxd4 {[%emt 0:00:02]} Qb6 {[%emt 0:00:56]} 14. Na4 {[%emt 0:00:47]} Qc7 {[%emt 0:00:06]} 15. Bc4 {[%emt 0:01:40][%cal Oa4c5]} Rd8 {[%emt 0:00:30]} 16. Bb3 {[%emt 0:01:38] c4 is the strong threat.} Be6 {[%emt 0:07:44] White has an edge.} 17. Nc5 {[%emt 0:19:30] aiming for Nxe6.} Nf4 {[%emt 0:00:21]} 18. Nxe6 {[%emt 0:01:00]} Nxe6 {[%emt 0:00:07]} 19. Qe3 {[%emt 0:01:39]} Nf4 {[%emt 0:02:26]} 20. g3 {[%emt 0:03:23]} Nd5 {[%emt 0:00:24]} 21. Qc5 {[%emt 0:02:52]} Qb6 {[%emt 0:05:14]} 22. Qxb6 {[%emt 0:01:20]} Nxb6 {[%emt 0:00:43]} 23. c3 {[%emt 0:01:08]} c5 {[%emt 0:08:00]} 24. Rxd8+ {[%emt 0:01:13]} Rxd8 {[%emt 0:00:08]} 25. Rd1 {[%emt 0:00:20] The position is equal.} Rc8 {[%emt 0:16:51]} 26. f4 {[%emt 0:04:12]} Kf8 {[%emt 0:00:30]} 27. Bc2 {[%emt 0:00:15] Weighted Error Value: White=0.03 (flawless) /Black=0.03 (flawless) .  OK:         	White=3     	Black=4      Best:        	---       	Black=1} 1/2-1/2

[Event "Serbian League 2024"]
[Site "Bajina Basta"]
[Date "2024.10.02"]
[Round "6.9"]
[White "Nenezic, Marko"]
[Black "Kovacevic, Aleksandar"]
[Result "0-1"]
[ECO "D41"]
[WhiteElo "2492"]
[BlackElo "2479"]
[Annotator "RC"]
[PlyCount "106"]
[EventDate "2024.09.26"]
[EventType "team-tourn"]
[EventCountry "SRB"]
[SourceTitle "playchess.com"]
[Source "ChessBase"]
[SourceQuality "1"]
[TimeControl "40/5400+30:1800+30"]

1. d4 {[%emt 0:00:29]} Nf6 {[%emt 0:00:20]} 2. c4 {[%emt 0:00:28]} e6 {[%emt 0:00:14]} 3. Nf3 {[%emt 0:00:33]} d5 {[%emt 0:01:39]} 4. Nc3 {[%emt 0:01:31]} c5 {[%emt 0:00:45]} 5. cxd5 {[%emt 0:00:55]} cxd4 {[%emt 0:00:10]} 6. Qa4+ {[%emt 0:02:42]} Bd7 {[%emt 0:00:46]} 7. Qxd4 {[%emt 0:00:11]} exd5 {[%emt 0:00:20]} 8. e3 {[%emt 0:00:39]} Nc6 {[%emt 0:00:49]} 9. Qd1 {[%emt 0:00:11]} Bb4 {[%emt 0:06:02]} 10. Bd2 {[%emt 0:00:36]} O-O {[%emt 0:00:29]} 11. a3 {[%emt 0:08:18]} Ba5 {[%emt 0:09:15]} 12. Be2 {[%emt 0:14:28]} Bg4 {[%emt 0:07:59]} 13. b4 {[%emt 0:08:30]} Bb6 {[%emt 0:06:16]} 14. b5 {[%emt 0:00:55]} Na5 {[%emt 0:03:25]} 15. Na4 {[%emt 0:00:31]} Nc4 {[%emt 0:05:21]} 16. O-O {[%emt 0:01:11]} Ba5 {[%emt 0:08:27]} 17. Bb4 {[%emt 0:26:40]} Bxb4 {[%emt 0:06:51]} 18. axb4 {[%emt 0:00:02]} Qe7 {[%emt 0:00:23]} 19. Nc3 {[%emt 0:00:16]} Nxe3 {[%emt 0:01:55]} 20. fxe3 {[%emt 0:05:42]} Qxe3+ {[%emt 0:00:26]} 21. Rf2 {[%emt 0:00:05]} Qxc3 {[%emt 0:01:29]} 22. Qd4 {[%emt 0:00:06]} Qxd4 {[%emt 0:13:39]} 23. Nxd4 {[%emt 0:00:06]} Bxe2 {[%emt 0:03:07]} 24. Rxe2 {[%emt 0:00:17]} Ne4 {[%emt 0:00:49]} 25. Rc2 {[%emt 0:00:16]} Rac8 {[%emt 0:02:50]} 26. Rxa7 {[%emt 0:01:40]} Rxc2 {[%emt 0:02:15]} 27. Nxc2 {[%emt 0:00:04]} Nd6 {[%emt 0:00:16]} 28. Nd4 {[%emt 0:02:02]} g6 {[%emt 0:00:57]} 29. b6 {[%emt 0:00:09]} Rc8 {[%emt 0:02:57]} 30. Ra5 {[%emt 0:00:46]} Rc4 {[%emt 0:04:05]} 31. Rxd5 {[%emt 0:08:17]} Ne4 {[%emt 0:00:05]} 32. g4 {[%emt 0:08:01]} Rxb4 {[%emt 0:01:19]} 33. h4 {[%emt 0:00:48]} Rxb6 {[%emt 0:02:38]} 34. Re5 {[%emt 0:00:14]} Nd6 {[%emt 0:02:56]} 35. g5 {[%emt 0:00:39]} Kf8 {[%emt 0:01:02]} 36. Kg2 {[%emt 0:00:11]} Rb4 {[%emt 0:01:24]} 37. Rd5 {[%emt 0:00:07]} Ke7 {[%emt 0:00:53]} 38. Kf3 {[%emt 0:00:14]} Rb1 {[%emt 0:00:48]} 39. Ke2 {[%emt 0:01:30]} Rh1 {[%emt 0:01:05]} 40. Nf3 {[%emt 0:00:20]} b5 {[%emt 0:00:54]} 41. Rd4 {[%emt 0:32:38]} Ra1 {[%emt 0:32:42]} 42. h5 {[%emt 0:02:36]} Ra2+ {[%emt 0:00:00]} 43. Ke1 {[%emt 0:00:00]} Ra4 {[%emt 0:00:00]} 44. hxg6 {[%emt 0:00:00]} hxg6 {[%emt 0:00:00]} 45. Rd5 {[%emt 0:00:00]} Ke6 {[%emt 0:00:00]} 46. Re5+ {[%emt 0:00:00]} Kd7 {[%emt 0:00:00]} 47. Rc5 {[%emt 0:00:00]} Rf4 {[%emt 0:00:00]} 48. Ke2 {[%emt 0:00:00]} Rf5 {[%emt 0:00:00]} 49. Rc1 {[%emt 0:00:00]} Ne4 {[%emt 0:00:00]} 50. Rg1 {[%emt 0:00:00]} b4 {[%emt 0:00:00]} 51. Ke3 {[%emt 0:00:00]} Nc5 {[%emt 0:00:00]} 52. Nd2 {[%emt 0:00:00]} Kc6 {[%emt 0:00:17]} 53. Nf3 {[%emt 0:00:00]} Ne6 {[%emt 0:00:53]} 0-1

[Event "Serbian League 2024"]
[Site "Bajina Basta"]
[Date "2024.10.02"]
[Round "6.10"]
[White "Brenjo, Slavisa"]
[Black "Perunovic, Miodrag"]
[Result "1/2-1/2"]
[ECO "B70"]
[WhiteElo "2376"]
[BlackElo "2347"]
[Annotator "TA"]
[PlyCount "22"]
[EventDate "2024.09.26"]
[EventType "team-tourn"]
[EventCountry "SRB"]
[SourceTitle "playchess.com"]
[Source "ChessBase"]
[SourceQuality "1"]
[TimeControl "40/5400+30:1800+30"]

{[%evp 17,22,0,9,-7,0,0,0]} 1. e4 {[%emt 0:01:34]} c5 {[%emt 0:00:14]} 2. Nf3 {[%emt 0:00:22]} d6 {[%emt 0:00:42]} 3. d4 {[%emt 0:00:24]} cxd4 {[%emt 0:00:10]} 4. Nxd4 {[%emt 0:00:08]} Nf6 {[%emt 0:00:06]} 5. Nc3 {[%emt 0:00:17]} g6 {[%emt 0:00:18]} 6. Be2 {[%emt 0:01:39]} Bg7 {[%emt 0:00:08]} 7. Nb3 {[%emt 0:02:30]} O-O {[%emt 0:00:08]} 8. O-O {[%emt 0:00:26]} Nc6 {[%emt 0:00:03]} 9. Bg5 {[%emt 0:00:38]} a6 {[%emt 0:00:56] Die Stellung ist ausgeglichen.} 10. f4 {[%emt 0:02:32]} b5 {[%emt 0:00:08]} 11. a3 {[%emt 0:03:34]} Bb7 {[%emt 0:00:06] Nicht viel passiert in dieser Partie.   Gewichteter Fehlerwert: Weiß=0.07 (makellos) /Schwarz=0.04 (makellos) .  OK:         	---       	Schwarz=2} 1/2-1/2

[Event "Serbian League 2024"]
[Site "Bajina Basta"]
[Date "2024.10.02"]
[Round "6.11"]
[White "Marcetic, Nikola"]
[Black "Gagic, Milan A"]
[Result "*"]
[ECO "D02"]
[WhiteElo "2290"]
[BlackElo "2284"]
[Annotator "RC"]
[PlyCount "70"]
[EventDate "2024.09.26"]
[EventType "team-tourn"]
[EventCountry "SRB"]
[SourceTitle "playchess.com"]
[Source "ChessBase"]
[SourceQuality "1"]
[TimeControl "40/5400+30:1800+30"]

1. d4 {[%emt 0:00:02]} d5 {[%emt 0:00:09]} 2. Nf3 {[%emt 0:00:10]} Nf6 {[%emt 0:00:10]} 3. Bf4 {[%emt 0:00:12]} c5 {[%emt 0:00:38]} 4. e3 {[%emt 0:00:08]} Nc6 {[%emt 0:00:13]} 5. Nbd2 {[%emt 0:00:49]} e6 {[%emt 0:00:16]} 6. c3 {[%emt 0:01:56]} Nh5 {[%emt 0:00:45]} 7. Be5 {[%emt 0:01:58]} f6 {[%emt 0:03:08]} 8. Bg3 {[%emt 0:04:07]} g6 {[%emt 0:04:00]} 9. Be2 {[%emt 0:05:08]} cxd4 {[%emt 0:04:43]} 10. exd4 {[%emt 0:10:59]} Bd6 {[%emt 0:02:56]} 11. Bxd6 {[%emt 0:07:29]} Qxd6 {[%emt 0:00:12]} 12. g3 {[%emt 0:00:17]} O-O {[%emt 0:04:16]} 13. O-O {[%emt 0:12:48]} Bd7 {[%emt 0:08:36]} 14. c4 {[%emt 0:08:10]} f5 {[%emt 0:14:31]} 15. Nb3 {[%emt 0:14:54]} Nf6 {[%emt 0:08:01]} 16. c5 {[%emt 0:01:50]} Qc7 {[%emt 0:01:56]} 17. Bb5 {[%emt 0:00:38]} Nb8 {[%emt 0:10:16]} 18. Bd3 {[%emt 0:01:57]} Ne4 {[%emt 0:02:33]} 19. Ne5 {[%emt 0:02:06]} Nc6 {[%emt 0:05:45]} 20. Nxc6 {[%emt 0:03:04]} bxc6 {[%emt 0:01:10]} 21. f3 {[%emt 0:00:15]} Nxg3 {[%emt 0:01:10]} 22. hxg3 {[%emt 0:02:11]} Qxg3+ {[%emt 0:01:18]} 23. Kh1 {[%emt 0:00:03]} Qh3+ {[%emt 0:07:02]} 24. Kg1 {[%emt 0:00:08]} Qg3+ {[%emt 0:00:45]} 25. Kh1 {[%emt 0:00:05]} g5 {[%emt 0:03:53]} 26. Qd2 {[%emt 0:09:46]} a5 {[%emt 0:02:06]} 27. Qh2 {[%emt 0:01:26]} Qxh2+ {[%emt 0:00:08]} 28. Kxh2 {[%emt 0:00:01]} Rfb8 {[%emt 0:01:56]} 29. Nc1 {[%emt 0:07:52]} Rb7 {[%emt 0:12:28]} 30. b3 Rxb3 {[%emt 0:00:00]} 31. Ne2 {[%emt 0:00:31]} Rb2 {[%emt 0:00:00]} 32. Rab1 {[%emt 0:01:24]} Rab8 {[%emt 0:00:00]} 33. f4 {[%emt 0:01:09]} Kf7 {[%emt 0:00:00]} 34. Kg2 gxf4 {[%emt 0:00:00]} 35. Kf3 {[%emt 0:01:22]} Kf6 {[%emt 0:00:00]} *